Cogmind - Beta 16 @@@ ROGUE MODE // 2025.12.27 @ 23:28:03 Player: Bity Result: Destroyed by G-47 Trooper with Particle Gun Performance ------------- Evolutions (0) 0 Regions Visited (1) 200 Robots Destroyed (22) 110 Value Destroyed (454) 454 Prototype IDs (0) 0 Alien Tech Used (0) 0 Bonus (0) 0 TOTAL SCORE: 764 Bonus ------- None Cogmind --------- Core Integrity 0/250 Matter 185/300 Energy 78/100 System Corruption 1% Temperature Cool (33) Movement Core (550) Ox10 Location -10/Materials Parts ------- > --- POWER (1) -------- (None) > --- PROPULSION (2) --- (None) > --- UTILITY (2) ------ Medium Storage Unit Large Storage Unit > --- WEAPON (2) ------- Datajack Mining Laser > --- INVENTORY (15) --- Light Ion Engine Wheel Compact Wheel Small Storage Unit ECM Suite Peak State ------------ > --- POWER ------------ Light Ion Engine > --- PROPULSION ------- Aluminum Leg Aluminum Leg > --- UTILITY ---------- Small Storage Unit Seismic Detector > --- WEAPON ----------- Medium Laser Small Laser > --- INVENTORY -------- Ion Engine Light Treads Light Treads Wheel Wheel Compact Wheel Medium Laser [Rating: 7] Favorites ----------- Power Light Ion Engine Engine Light Ion Engine Propulsion Wheel Treads Light Treads Leg Aluminum Leg Wheel Wheel Utility Small Storage Unit Device Seismic Detector Storage Small Storage Unit Weapon Medium Laser Energy Gun Medium Laser Launcher Grenade Launcher Special Weapon Mining Laser Special Melee Weapon Datajack Build | -11 -10 ------- Run | Yrd Mat Slots Evolved . | . . Power . | . . Propulsion . | . . Utility . | . . Weapon . | . . Parts Attached 13 | 2 11 Power 1 | . 1 Engine 1 | . 1 Core . | . . Reactor . | . . Propulsion 5 | . 5 Treads 2 | . 2 Leg . | . . Wheel 3 | . 3 Hover . | . . Flight . | . . Utility 3 | 1 2 Device 1 | 1 . Storage 2 | . 2 Processor . | . . Hackware . | . . Protection . | . . Artifact . | . . Weapon 4 | 1 3 Energy Gun 1 | 1 . Energy Cannon . | . . Ballistic Gun . | . . Ballistic Cannon . | . . Launcher 1 | . 1 Special Weapon 1 | . 1 Impact Weapon . | . . Slashing Weapon . | . . Piercing Weapon . | . . Special Melee Weapon 1 | . 1 Unidentified Prototypes . | . . Parts Lost 11 | . 11 Power 2 | . 2 Propulsion 5 | . 5 Utility 1 | . 1 Weapon 3 | . 3 Highest Loss Streak 4 | . 4 To Critical Strikes . | . . Average Backups 6 | 6 6 Power 1 | 1 1 Propulsion 3 | 4 2 Utility . | . . Weapon 1 | 1 1 Tool/Special . | . . Unused Backups 11 | 2 9 Power 2 | 1 1 Propulsion 6 | 1 5 Utility 3 | . 3 Weapon . | . . Tool/Special . | . . Average Slot Usage (%) 85 | . 85 Engine 8 | . 8 Treads 11 | . 11 Wheel 14 | . 14 Device 10 | . 10 Storage 14 | . 14 Energy Gun 13 | . 13 Launcher 3 | . 3 Special Weapon 2 | . 2 Special Melee Weapon 5 | . 5 Peak Build Rating 7 | 7 7 Average Rating 6 | 6 6 On Entrance 6 | 6 7 Avg Prop Armor Cover (%) . | . . Naked Turns . | . . Heaviest Build 32 | 13 32 Greatest Support 40 | 20 40 Greatest Overweight (x) 3 | . 3 Average Overweight (x) . | . . Largest Inventory Capacity 15 | 8 15 Average Capacity 8 | 8 8 Most Carried 8 | 8 8 Average Carried 6 | 6 6 Final Capacity 15 | 8 15 Final Carried 8 | 8 5 Class Distribution -------------------- 100% | Mutant Dominant Class ---------------- Mutant | -10/Materials Resources | -11 -10 ----------- Run | Yrd Mat Matter Collected 312 | 220 92 Remotely . | . . Salvage Created 506 | 188 318 Parts 37 | 12 25 Haulers Intercepted . | . . Recyclers Shooed . | . . Parts Field Recycled . | . . Retrieved Matter . | . . Parts Self-Destructed . | . . Prevented . | . . Parts Restored . | . . Kills | -11 -10 ------- Run | Yrd Mat Combat Hostiles Destroyed 11 | . 11 Guns 4 | . 4 AOE 7 | . 7 Classes Destroyed 8 | 2 6 Worker 1 | . 1 Builder 1 | . 1 Tunneler 5 | 5 . Recycler 1 | 1 . Mechanic 1 | . 1 Watcher 2 | . 2 Swarmer 3 | . 3 Grunt 8 | . 8 Best Kill Streak 6 | 4 6 Combat Bots Only 5 | . 5 Max Kills in Single Turn 2 | 1 2 Gunslinging . | . . Exploded 1 | . 1 Melee . | . . Uniques/NPCs Destroyed . | . . Combat | -11 -10 -------- Run | Yrd Mat Hostile Shots Fired 114 | . 114 Missed 30 | . 30 Hits 84 | . 84 Projectile 84 | . 84 Critical Strikes 2 | . 2 Damage Taken 1025 | . 1025 Core 256 | . 256 Absorbed by Shields . | . . Core Remaining (%) 100 | 100 . Volleys Fired 61 | 11 50 Largest 2 | 2 2 Hottest 100 | 90 100 Shots Fired 103 | 22 81 Gun 84 | 22 62 Cannon . | . . Launcher 13 | . 13 Special 6 | . 6 Kinetic . | . . Thermal 90 | 22 68 Explosive 13 | . 13 Electromagnetic . | . . Robot Hit Streak 16 | 9 16 Robot Miss Streak 3 | 2 3 Penetration Max . | . . Secondary Targets 1 | . 1 Max Gunslinging Chain 1 | . 1 Shots Hit Robots 65 | 18 47 Core Hits 33 | 7 26 Critical Kills . | . . Critical Parts Destroyed . | . . Critical Strikes 9 | 1 8 Burn 9 | 1 8 Melee Attacks 3 | . 3 Impact . | . . Slashing . | . . Piercing . | . . Sneak Attacks . | . . Combat Hostiles . | . . Follow-up Attacks . | . . Damage Inflicted 1586 | 220 1366 Guns 742 | 220 522 Cannons . | . . Explosions 844 | . 844 Melee . | . . Ramming . | . . Kinetic . | . . Thermal 742 | 220 522 Explosive 764 | . 764 Electromagnetic 80 | . 80 Impact . | . . Slashing . | . . Piercing . | . . Highest Corruption 1 | . 1 Average Corruption 1 | . 1 Corruption Purged . | . . Corruption Blocked . | . . Effects 4 | . 4 Message Errors 3 | . 3 Matter Fused 1 | . 1 Overload Shots . | . . Overflow Damage 58 | . 58 Projectiles . | . . Explosions 58 | . 58 Melee . | . . Knockbacks . | . . Impact . | . . Kinetic . | . . Secondary . | . . Self-Inflicted Damage 82 | . 82 Shots 3 | . 3 Rammed . | . . Targets Rammed . | . . Kicked . | . . Crushed . | . . Highest Temperature 482 | 210 482 Average Temperature 177 | 78 205 Received Heat Transfer 525 | . 525 Effects 10 | . 10 Shutdowns 2 | . 2 Interference 4 | . 4 Damage (minor) 1 | . 1 Damage (major) 3 | . 3 Siege Activations . | . . Martial Activations . | . . Shielding Activations . | . . Robots Disrupted . | . . Combat Hostiles . | . . Robots Corrupted . | . . Combat Hostiles . | . . Parts Fried . | . . Impact Corruptions . | . . Robots Melted . | . . Combat Hostiles . | . . Parts Melted 5 | 2 3 Heat Transferred 2815 | 669 2146 Parts Sabotaged . | . . Parts Stolen . | . . Parts Stripped . | . . Power Chain Reactions . | . . Alert | -11 -10 ------- Run | Yrd Mat Maximum Alert Level 1 | . 1 Low Security (%) 71 | 100 66 Level 1 28 | . 33 Level 2 . | . . Level 3 . | . . Level 4 . | . . Level 5 . | . . High Security . | . . Max Security . | . . Peak Influence 266 | 10 266 Initial . | . . Average 88 | 1 103 Influence Increases 591 | 30 561 Destroy 0b10 Robot/C 220 | . 220 Destroy 0b10 Robot/NC 55 | 30 25 Destroy Leader 44 | . 44 Successful Hack 23 | . 23 Disable Machine 90 | . 90 Destroy Structure 69 | . 69 Lose Combat Pursuer 90 | . 90 Influence Decreases 372 | 30 342 Time Decay 262 | 30 232 Lost Part 110 | . 110 Squads Dispatched 5 | . 5 Investigation 5 | . 5 Extermination . | . . Reinforcement . | . . Assault . | . . Garrison . | . . Intercept . | . . Searches Triggered . | . . Construction Impeded . | . . Haulers Reinforced . | . . Active Scanning Responses . | . . Cargo Convoy Interrupts . | . . Stealth | -11 -10 --------- Run | Yrd Mat Distress Signals 2 | . 2 Communications Jammed . | . . Distress Signals . | . . Times Spotted 24 | . 24 Peak Tracking Total 5 | . 5 Tactical Retreats 3 | . 3 Traps | -11 -10 ------- Run | Yrd Mat Traps Triggered 1 | . 1 Indirectly . | . . Trap Hack Attempts . | . . Triggered . | . . Disarmed . | . . Reprogrammed . | . . Reused . | . . Traps Extracted . | . . Installed . | . . Triggered . | . . Machines | -11 -10 ---------- Run | Yrd Mat Machines Disabled 6 | . 6 Max in Single Turn 3 | . 3 Machines Repaired . | . . Machines Dismantled . | . . Machines Sabotaged . | . . Overloaded Fab Kills . | . . Hacking | -11 -10 --------- Run | Yrd Mat Machines Accessed 7 | . 7 Terminals 7 | . 7 Fabricators . | . . Repair Stations . | . . Recycling Units . | . . Scanalyzers . | . . Garrison Access . | . . Total Hacks 28 | . 28 Successful 15 | . 15 Failed 13 | . 13 Catastrophic 1 | . 1 Database Lockouts . | . . Manual 18 | . 18 Terminals 28 | . 28 Fabricators . | . . Repair Stations . | . . Recycling Units . | . . Scanalyzers . | . . Garrison Access . | . . Terminal Hacks 7 | . 7 Branch Access Points 1 | . 1 Terminal Index 1 | . 1 Alert Level 1 | . 1 Recall Investigation 1 | . 1 Zone Layout 3 | . 3 Fabricator Hacks . | . . Repair Station Hacks . | . . Recycling Unit Hacks . | . . Scanalyzer . | . . Garrison Access Hacks . | . . Unauthorized Hacks 8 | . 8 Terminals 8 | . 8 Track 1 | . 1 Botnet 6 | . 6 Operators 1 | . 1 Fabricators . | . . Repair Stations . | . . Recycling Units . | . . Scanalyzers . | . . Garrison Access . | . . Data Cores Recovered . | . . Used . | . . Hacking Detections 7 | . 7 Full Trace Events 6 | . 6 Feedback Events 1 | . 1 Corruption 1 | . 1 Feedback Blocked . | . . Robot Schematics Acquired . | . . Robots Built . | . . Authchips . | . . Time . | . . Total Robot Build Rating . | . . Part Schematics Acquired . | . . Parts Built . | . . Authchips . | . . Time . | . . Total Part Build Rating . | . . Part Studies Acquired . | . . Parts Repaired . | . . Time . | . . Parts Recycled . | . . Recycled Matter . | . . Retrieved Matter . | . . Retrieved Components . | . . Parts Scanalyzed . | . . Part Schematics Acquired . | . . Parts Damaged . | . . Bothacking | -11 -10 ------------ Run | Yrd Mat Used RIF Installer . | . . Robots Hacked 2 | . 2 Non-combat 1 | . 1 Combat 1 | . 1 Robot Hacks Applied 2 | . 2 parse_system 2 | . 2 Relay Couplers Released . | . . Fabnet Peak Effective % . | . . Robots Rewired . | . . Allies Hacked . | . . Hacks Repelled . | . . Allies | -11 -10 -------- Run | Yrd Mat Total Allies . | . . Largest Group . | . . Highest-Rated Group . | . . Highest-Rated Ally . | . . Total Orders . | . . Ally Attacks . | . . Total Damage . | . . Kills . | . . Allies Corrupted . | . . Allies Melted . | . . Intel | -11 -10 ------- Run | Yrd Mat Active Infowar (turns) 243 | 42 201 Seismic 243 | 42 201 Robot Analysis Total . | . . Derelict Logs Recovered . | . . Drone Launches . | . . Drone Recoveries . | . . Exploration | -11 -10 ------------- Run | Yrd Mat Turns Passed 819 | 122 697 Spaces Moved 563 | 63 500 Core . | . . Treads 122 | . 122 Legs 72 | 63 9 Wheels 369 | . 369 Hover . | . . Flight . | . . Fastest Speed 80 | 120 80 Average Speed 103 | 120 101 Slowest Speed 160 | 120 160 Overloaded Moves . | . . Propulsion Burnouts . | . . Robots Hopped . | . . Potential Cave-ins . | . . Cave-ins Triggered . | . . Exploration Rate (%) 41 | 3 79 Regions Visited 1 Branch Regions . Pre-discovered Areas . | . . Known Exits Taken . | . . Unknown Exits Taken 1 | 1 . Scrap Searched . | . . Spaces Dug 21 | . 21 Terrain Destroyed 67 | . 67 Melee . | . . Projectile 6 | . 6 AOE 61 | . 61 Terrain Rammed . | . . Walls Destroyed . | . . Machines Disabled . | . . Actions | -11 -10 --------- Run | Yrd Mat Total 687 | 92 595 Wait 33 | 9 24 Move 562 | 62 500 Hop . | . . Pick Up 10 | 5 5 Fast Attach 2 | 1 1 Attach 8 | 1 7 Detach . | . . Swap 3 | . 3 Drop 5 | 3 2 Fire 61 | 11 50 Melee 3 | . 3 Ram . | . . Kick . | . . Crush . | . . Escape Stasis . | . . Rewire . | . . Trap . | . . Miscellaneous . | . . Route ------- -11/Scrapyard -10/Materials (discovered 2 exits: [*Mat] / *Min) History --------- Turn | Location | Event 1 | -11/Scrapyard | Discovered new exit (range 3) 123 | -11/Scrapyard | Entered Materials 283 | -10/Materials | Discovered new exit (range 15) 283 | -10/Materials | Identified exit to Mines 311 | -10/Materials | Build established: Mutant 430 | -10/Materials | Core integrity fell below 50% 497 | -10/Materials | Lost 4 parts (2n2w) 506 | -10/Materials | Discovered new exit (range 16) 650 | -10/Materials | Core integrity fell below 20% 694 | -10/Materials | Lost 3 parts (1n1u1w) 820 | -10/Materials | Destroyed by G-47 Trooper with Particle Gun Last Messages --------------- >>Layout(Zone) Retrieving Zone 4D layout... Downloaded map data. 00647_ Grenade Launcher destroyed. 00660_ K-01 Serf collects debris. 00662_ Wheel destroyed. 00663_ Seismic Detector destroyed. 00663_ Critical hit (Burn: +37). 00690_ K-01 Serf collects debris. 00702_ System corrupted: Matter fused (-7). 00719_ HQPW/XU9PD0UX5PDIRT E9V22L1G 00781_ Connecting with Terminal... >>Alert(Check) Current Alert Level: 1-F 00784_ G-47 Trooper misfires. 00787_ Wheel destroyed. 00812_ Acquired Lrg. Storage Unit. 00817_ Wheel destroyed. 00820_ Critical hit (Burn: +37). [Achievement: Back For More] Map ----- +----------------------------------------------------+ | ?????????????# """ #????????????????????????????? | | ?????????????# "R" #????????????????????????????? | | ######???????# " " #??????#####?????????????????? | | #!!!!##??????# #??????# ##########????????? | | ! !#??????# #??????# # #???????## | | #???????? ???????# # """ #??????##" | | ###########+########## # """ #?????##"! | | # """ #?????#"" | | + #?????# | | # """ #?????# | | #######+######+########## # """ #?????# | | #???? ??# ???????# # """ #?????# | | #??# # #??????# # #?????## | | #??# ! # ######## ####+############# | | #??# # # ## #??# #????# # | | #??# # # """ ## #??# #????#! """ + | | #??# !* # # """ ## ##?# #????# """ # | | #??#* ** # # """ # #?# #????# """ # | | #??# * # # # #?# #????# """ # | | #??# # # + ### ##???# # | | #??############### [[g # ## #??##"###### | | #????????????????# [| g# ## ####"####### | | #????????????????# [| ####"### | | ##???????????????# # # | | ###########?????# # " # | | ^ #?????# @; """ # | | " ^ #?????####### """ + """ | | ^ #???????????# """ # """ | | ^ #???????????# "" #######+### """ | | # #???????????# """ #### # | | # #???????????# "" + + " + | | # """ T #???????????# """ #### T # | | # """ #???????????# " #??# " + | | # """ #########???# #??# ###### | | # # #???# #??# =##???# | | # # " #???# "T" #??####### #???# | | # """ # """ #???#######"##### ###### | | # " """ # "" #????????## % | | # """ # """ #######??# | | # + "" ### #### = * | | # # """ # # = | | # """ # """ # % # #### | | # """ % # """ # " # ### ##??# | | # """ # " + """"" " #?# #???# | | # # # """"" " #?# #???# | | / !!!######### "" % ^ #?# #???# | | # """ !!!#???????# #! #?# #???# | | # """ !!!#???????# ##+####?# !#???# | | # ?""" #??????##### ##### #????# #???# | | ????? #??????# #????#####???# | +----------------------------------------------------+ Best States ------------- Heat Dissipation 25 Energy Generation 10 Energy Capacity 250 Matter Stores 300 Matter Capacity 300 Sight Range 16 Terrain Scan Density 10 Evasion (%) 45 Recoil Reduction 2 Item Schematics ----------------- None Robot Schematics ------------------ None Fabricated ------------ Nothing Repaired ---------- Nothing Studied --------- None Alien Tech Used ----------------- None Achievements -------------- Back For More Challenges ------------ None Game ------ Seed ProtonMediumRay Manual? 0 Play Time 00:15:55 Cumulative 39.2 hours Start 2025.12.27 @ 23:19:30 End 2025.12.27 @ 23:28:03 Sessions 1 Manual Loads 0 Difficulty Rogue Special Mode None Game No. 50 Rogue 50 Adventurer 0 Explorer 0 Win Type - Total 1 Types 1/0/0/0/0/0/0/0/0/0 Lore% 32 Gallery% 41 Achievement% 32 Wizard Run 0 Options --------- Layout 2 ASCII 0 Keyboard 1 Movement Numpad Keybinds 0 Fullscreen 1 Font 24/Smallcaps Map View 50x44 Zoom Use 0% Tactical HUD 1 Map Filters NONE Filters NONE Steam 1 RUN: 77bb76bc-8b65-45a8-98a6-9d825884dd7b